[Event "Skalica Open 2019"]
[Site "Skalica"]
[Date "2019.08.29"]
[Round "7.9"]
[White "Karas, Marek"]
[Black "Gasa, Patrik"]
[Result "1/2-1/2"]
[ECO "A05"]
[WhiteElo "2233"]
[BlackElo "2187"]
[Annotator "NA"]
[PlyCount "120"]
[EventDate "2019.08.25"]
[EventType "swiss"]
[EventCountry "SVK"]
[SourceTitle "playchess.com"]
[Source "ChessBase"]
[SourceQuality "1"]
[TimeControl "40/5400+30:1800+30"]

1. Nf3 Nf6 {[%emt 0:00:00]} 2. c4 {[%emt 0:00:35]} e6 {[%emt 0:00:34]} 3. Nc3 {[%emt 0:00:14]} d5 {[%emt 0:00:05]} 4. e3 {[%emt 0:01:05]} c5 {[%emt 0:00:26]} 5. d4 {[%emt 0:00:16]} cxd4 {[%emt 0:00:57]} 6. exd4 {[%emt 0:00:19]} Be7 {[%emt 0:00:22]} 7. Bd3 {[%emt 0:02:35]} dxc4 {[%emt 0:01:33]} 8. Bxc4 {[%emt 0:00:08]} O-O {[%emt 0:00:07]} 9. O-O {[%emt 0:00:59]} Nc6 {[%emt 0:00:10]} 10. a3 {[%emt 0:00:17]} a6 {[%emt 0:00:13]} 11. Bb3 {[%emt 0:02:51]} b5 {[%emt 0:14:02]} 12. Re1 {[%emt 0:04:51]} Bb7 {[%emt 0:10:58]} 13. Bc2 {[%emt 0:04:40]} Rc8 {[%emt 0:13:31]} 14. Bg5 {[%emt 0:06:07]} Re8 {[%emt 0:23:58]} 15. Qd3 {[%emt 0:05:29]} g6 {[%emt 0:01:12]} 16. Bb3 {[%emt 0:03:21]} Na5 {[%emt 0:04:39]} 17. Ba2 {[%emt 0:01:19]} Nc4 {[%emt 0:00:26]} 18. Rab1 {[%emt 0:06:04]} Bxf3 {[%emt 0:03:07]} 19. Qxf3 {[%emt 0:00:50]} Qxd4 {[%emt 0:02:47]} 20. Bxc4 {[%emt 0:04:34]} Rxc4 {[%emt 0:01:08]} 21. h3 {[%emt 0:02:34]} Qd8 {[%emt 0:11:42]} 22. Rbd1 {[%emt 0:06:01]} Nd5 {[%emt 0:04:06]} 23. Bh6 {[%emt 0:04:42]} Bf8 {[%emt 0:00:50]} 24. Bxf8 {[%emt 0:02:02]} Kxf8 {[%emt 0:00:01]} 25. Nxd5 {[%emt 0:03:05]} exd5 {[%emt 0:00:01]} 26. Rxe8+ {[%emt 0:00:29]} Qxe8 {[%emt 0:00:02]} 27. Qxd5 {[%emt 0:02:02]} Qc6 28. Qg5 {[%emt 0:02:29]} Kg7 {[%emt 0:03:17]} 29. Qe5+ {[%emt 0:02:03]} Qf6 {[%emt 0:02:40]} 30. Qxf6+ {[%emt 0:00:12]} Kxf6 {[%emt 0:00:01]} 31. Rd6+ {[%emt 0:00:16]} Kg7 {[%emt 0:00:05]} 32. Rxa6 {[%emt 0:00:53]} Rc1+ {[%emt 0:00:01]} 33. Kh2 {[%emt 0:00:09]} Rc2 {[%emt 0:00:11]} 34. b4 {[%emt 0:00:28]} Rxf2 {[%emt 0:00:10]} 35. Kg3 {[%emt 0:00:07]} Rf5 {[%emt 0:02:54]} 36. Rc6 {[%emt 0:01:35]} Kf8 {[%emt 0:01:00]} 37. Rc7 {[%emt 0:03:46]} h5 {[%emt 0:00:23]} 38. Ra7 {[%emt 0:02:24]} Kg7 {[%emt 0:00:37]} 39. a4 {[%emt 0:01:51]} bxa4 {[%emt 0:00:36]} 40. Rxa4 {[%emt 0:00:02]} Rf1 {[%emt 0:00:28]} 41. Ra6 {[%emt 0:30:55]} Rb1 {[%emt 0:30:22]} 42. Rb6 {[%emt 0:00:10]} Rb3+ {[%emt 0:00:00]} 43. Kf2 {[%emt 0:00:00]} h4 {[%emt 0:00:00]} 44. b5 {[%emt 0:00:00]} g5 {[%emt 0:00:00]} 45. Rb7 {[%emt 0:00:00]} Kg6 {[%emt 0:00:00]} 46. b6 {[%emt 0:00:00]} f6 {[%emt 0:00:00]} 47. Rb8 {[%emt 0:00:00]} Kf5 {[%emt 0:00:00]} 48. Kg1 {[%emt 0:00:00]} Kf4 {[%emt 0:00:00]} 49. Kh2 {[%emt 0:00:00]} Rb1 {[%emt 0:00:00]} 50. Rb7 {[%emt 0:00:00]} f5 {[%emt 0:00:00]} 51. Rb8 {[%emt 0:00:00]} Rb2 {[%emt 0:00:00]} 52. Rb7 {[%emt 0:00:00]} g4 {[%emt 0:00:00]} 53. hxg4 {[%emt 0:00:00]} fxg4 {[%emt 0:00:00]} 54. Rf7+ {[%emt 0:00:00]} Kg5 {[%emt 0:00:00]} 55. b7 {[%emt 0:00:00]} Rb1 {[%emt 0:00:00]} 56. Rg7+ {[%emt 0:00:00]} Kf5 {[%emt 0:00:00]} 57. Rf7+ {[%emt 0:00:00]} Kg6 {[%emt 0:00:00]} 58. Rc7 {[%emt 0:00:00]} Rb4 {[%emt 0:00:00]} 59. Rc6+ {[%emt 0:00:00]} Kg5 {[%emt 0:00:00]} 60. Rc5+ {[%emt 0:00:00]} Kg6 {[%emt 0:00:00]} 1/2-1/2

[Event "Skalica Open 2019"]
[Site "Skalica"]
[Date "2019.08.29"]
[Round "7.10"]
[White "Skalsky, Alexandr"]
[Black "Bochnicka, Vladimir"]
[Result "1-0"]
[ECO "B33"]
[WhiteElo "2128"]
[BlackElo "2193"]
[Annotator "NA"]
[PlyCount "97"]
[EventDate "2019.08.25"]
[EventType "swiss"]
[EventCountry "SVK"]
[SourceTitle "playchess.com"]
[Source "ChessBase"]
[SourceQuality "1"]
[TimeControl "40/5400+30:1800+30"]

1. e4 {[%emt 0:00:00]} c5 {[%emt 0:00:00]} 2. Nf3 {[%emt 0:00:00]} Nc6 {[%emt 0:00:00]} 3. d4 {[%emt 0:00:00]} cxd4 {[%emt 0:00:00]} 4. Nxd4 {[%emt 0:00:00]} Nf6 {[%emt 0:00:59]} 5. Nc3 {[%emt 0:00:00]} e5 {[%emt 0:00:05]} 6. Ndb5 {[%emt 0:00:00]} d6 {[%emt 0:00:04]} 7. Bg5 {[%emt 0:00:01]} a6 {[%emt 0:00:05]} 8. Na3 {[%emt 0:00:04]} b5 {[%emt 0:00:06]} 9. Nd5 {[%emt 0:00:35]} Be7 {[%emt 0:00:06]} 10. Bxf6 {[%emt 0:00:05]} Bxf6 {[%emt 0:00:02]} 11. c4 {[%emt 0:00:09]} b4 {[%emt 0:00:47]} 12. Nc2 {[%emt 0:00:07]} a5 {[%emt 0:00:24]} 13. g3 {[%emt 0:00:05]} O-O {[%emt 0:05:46]} 14. Bg2 {[%emt 0:00:14]} Be6 {[%emt 0:02:50]} 15. O-O {[%emt 0:00:48]} Rb8 {[%emt 0:01:03]} 16. Qd3 {[%emt 0:11:33]} Bg5 {[%emt 0:01:28]} 17. Rad1 {[%emt 0:14:17]} a4 {[%emt 0:07:22]} 18. b3 {[%emt 0:02:48]} Qa5 {[%emt 0:04:56]} 19. Kh1 {[%emt 0:03:16]} Bd8 {[%emt 0:05:20]} 20. f4 {[%emt 0:04:47]} f6 {[%emt 0:06:34]} 21. Nde3 {[%emt 0:15:36]} Bc7 {[%emt 0:11:13]} 22. f5 {[%emt 0:03:52]} Bf7 {[%emt 0:02:21]} 23. g4 {[%emt 0:00:01]} Bb6 {[%emt 0:16:38]} 24. g5 {[%emt 0:13:59]} Bh5 {[%emt 0:05:38]} 25. Bf3 {[%emt 0:01:29]} Bxf3+ {[%emt 0:00:24]} 26. Rxf3 {[%emt 0:00:02]} Nd4 {[%emt 0:10:05]} 27. Nxd4 {[%emt 0:02:14]} Bxd4 {[%emt 0:00:05]} 28. Nd5 {[%emt 0:03:37]} Rb7 {[%emt 0:01:12]} 29. Qd2 {[%emt 0:10:05]} axb3 {[%emt 0:03:06]} 30. axb3 {[%emt 0:00:31]} Qd8 {[%emt 0:03:37]} 31. gxf6 {[%emt 0:00:54]} gxf6 {[%emt 0:00:01]} 32. Nxb4 {[%emt 0:02:14]} Qe8 {[%emt 0:11:35]} 33. Qh6 {[%emt 0:01:35]} Rg7 {[%emt 0:00:16]} 34. Nd5 {[%emt 0:02:06]} Qf7 {[%emt 0:02:05]} 35. Rg3 {[%emt 0:01:39]} Rxg3 {[%emt 0:00:05]} 36. hxg3 {[%emt 0:00:00]} Kh8 {[%emt 0:01:02]} 37. Kg2 {[%emt 0:00:57]} Ra8 {[%emt 0:00:35]} 38. Qxf6+ {[%emt 0:06:38]} Qxf6 {[%emt 0:00:01]} 39. Nxf6 {[%emt 0:00:04]} Ra2+ {[%emt 0:00:13]} 40. Kf3 {[%emt 0:00:25]} Rb2 {[%emt 0:00:12]} 41. Rd3 {[%emt 0:04:25]} Kg7 {[%emt 0:01:58]} 42. Ne8+ {[%emt 0:12:21]} Kh6 {[%emt 0:00:22]} 43. Kg4 {[%emt 0:02:18]} Re2 {[%emt 0:01:02]} 44. Nxd6 {[%emt 0:00:58]} Kg7 {[%emt 0:00:09]} 45. Nb5 {[%emt 0:07:34]} Bc5 {[%emt 0:02:14]} 46. Rd7+ {[%emt 0:01:17]} Kf6 {[%emt 0:00:36]} 47. Nc3 {[%emt 0:00:57]} h5+ {[%emt 0:01:30]} 48. Kxh5 {[%emt 0:00:07]} Rh2+ {[%emt 0:00:12]} 49. Kg4 {[%emt 0:00:02]} 1-0

[Event "Skalica Open 2019"]
[Site "Skalica"]
[Date "2019.08.29"]
[Round "7.11"]
[White "Husek, Martin"]
[Black "Sefcik, Marek"]
[Result "1-0"]
[ECO "B00"]
[WhiteElo "2182"]
[BlackElo "2024"]
[Annotator "NA"]
[PlyCount "103"]
[EventDate "2019.08.25"]
[EventType "swiss"]
[EventCountry "SVK"]
[SourceTitle "playchess.com"]
[Source "ChessBase"]
[SourceQuality "1"]
[TimeControl "40/5400+30:1800+30"]

1. e4 {[%emt 0:00:00]} d6 {[%emt 0:01:57]} 2. d4 {[%emt 0:00:00]} Nd7 {[%emt 0:00:13]} 3. Nc3 {[%emt 0:00:30]} e5 {[%emt 0:02:18]} 4. f4 {[%emt 0:01:13]} Be7 {[%emt 0:05:18]} 5. Nf3 {[%emt 0:00:44]} exd4 {[%emt 0:11:45]} 6. Qxd4 {[%emt 0:01:01]} Nc5 {[%emt 0:09:19]} 7. Be3 {[%emt 0:01:29]} Nf6 {[%emt 0:03:45]} 8. O-O-O {[%emt 0:03:57]} O-O {[%emt 0:00:48]} 9. Kb1 {[%emt 0:02:20]} Bd7 {[%emt 0:05:17]} 10. e5 {[%emt 0:02:36]} Ng4 {[%emt 0:02:08]} 11. Bg1 {[%emt 0:01:07]} Bc6 {[%emt 0:05:24]} 12. exd6 {[%emt 0:08:54]} Bxd6 {[%emt 0:03:00]} 13. Qxc5 {[%emt 0:00:47]} Bxc5 {[%emt 0:00:42]} 14. Rxd8 {[%emt 0:00:08]} Rfxd8 {[%emt 0:01:03]} 15. Bxc5 {[%emt 0:00:11]} b6 {[%emt 0:00:40]} 16. h3 {[%emt 0:01:44]} Nf6 {[%emt 0:01:13]} 17. Be7 {[%emt 0:01:37]} Re8 {[%emt 0:05:52]} 18. Bxf6 {[%emt 0:00:18]} Bxf3 {[%emt 0:01:11]} 19. Be5 {[%emt 0:01:46]} Bb7 {[%emt 0:04:19]} 20. Bc4 {[%emt 0:01:19]} Re7 {[%emt 0:04:31]} 21. Nd5 {[%emt 0:00:47]} Bxd5 {[%emt 0:00:35]} 22. Bxd5 {[%emt 0:00:10]} Rd8 {[%emt 0:00:39]} 23. Bc6 {[%emt 0:01:52]} f6 {[%emt 0:01:05]} 24. Bc3 {[%emt 0:00:13]} Re6 {[%emt 0:01:18]} 25. Bf3 {[%emt 0:00:10]} c5 {[%emt 0:00:51]} 26. b4 {[%emt 0:04:03]} cxb4 {[%emt 0:01:34]} 27. Bxb4 {[%emt 0:00:10]} a5 {[%emt 0:01:12]} 28. Bc3 {[%emt 0:01:44]} Kf8 {[%emt 0:01:47]} 29. Kc1 {[%emt 0:01:54]} Ke7 {[%emt 0:03:11]} 30. Re1 {[%emt 0:00:24]} Rxe1+ {[%emt 0:00:39]} 31. Bxe1 {[%emt 0:00:11]} Ke6 {[%emt 0:00:32]} 32. Bf2 {[%emt 0:00:50]} Rd6 {[%emt 0:01:50]} 33. Be4 {[%emt 0:00:41]} g6 {[%emt 0:01:01]} 34. Kb2 {[%emt 0:01:09]} f5 {[%emt 0:00:51]} 35. Bd3 {[%emt 0:00:11]} Kd5 {[%emt 0:01:06]} 36. Kb3 {[%emt 0:01:15]} Kc6 {[%emt 0:01:56]} 37. g4 {[%emt 0:03:20]} fxg4 {[%emt 0:01:27]} 38. hxg4 {[%emt 0:00:06]} h5 {[%emt 0:00:30]} 39. f5 {[%emt 0:01:00]} gxf5 {[%emt 0:01:27]} 40. gxf5 {[%emt 0:00:13]} b5 {[%emt 0:05:31]} 41. a4 {[%emt 0:30:15]} bxa4+ {[%emt 0:30:55]} 42. Kxa4 {[%emt 0:00:23]} h4 {[%emt 0:00:33]} 43. Kxa5 {[%emt 0:00:50]} h3 {[%emt 0:00:33]} 44. Bg3 {[%emt 0:00:31]} Rh6 {[%emt 0:00:23]} 45. Bh2 {[%emt 0:05:17]} Kc5 {[%emt 0:01:19]} 46. Ka4 {[%emt 0:08:03]} Kd4 {[%emt 0:07:16]} 47. Kb5 {[%emt 0:03:43]} Rh5 {[%emt 0:00:00]} 48. Kc6 {[%emt 0:00:00]} Rg5 {[%emt 0:00:00]} 49. f6 {[%emt 0:00:00]} Rg2 {[%emt 0:00:00]} 50. f7 {[%emt 0:00:00]} Rf2 {[%emt 0:00:00]} 51. Bg1 {[%emt 0:00:00]} h2 {[%emt 0:00:00]} 52. Bxf2+ {[%emt 0:00:00]} 1-0

[Event "Skalica Open 2019"]
[Site "Skalica"]
[Date "2019.08.29"]
[Round "7.12"]
[White "Khmelev, Mikhail"]
[Black "Kalisky, Vladimir"]
[Result "1-0"]
[ECO "B33"]
[WhiteElo "2021"]
[BlackElo "2179"]
[Annotator "NA"]
[PlyCount "90"]
[EventDate "2019.08.25"]
[EventType "swiss"]
[EventCountry "SVK"]
[SourceTitle "playchess.com"]
[Source "ChessBase"]
[SourceQuality "1"]
[TimeControl "40/5400+30:1800+30"]

1. e4 {[%emt 0:00:00]} c5 {[%emt 0:00:00]} 2. Nf3 {[%emt 0:00:00]} Nc6 {[%emt 0:00:00]} 3. d4 {[%emt 0:00:14]} cxd4 {[%emt 0:00:00]} 4. Nxd4 {[%emt 0:00:03]} Nf6 {[%emt 0:00:17]} 5. Nc3 {[%emt 0:00:07]} g6 {[%emt 0:00:17]} 6. Be3 {[%emt 0:03:21]} Bg7 {[%emt 0:00:12]} 7. f3 {[%emt 0:00:04]} O-O {[%emt 0:00:17]} 8. Qd2 {[%emt 0:00:04]} d5 {[%emt 0:00:20]} 9. exd5 {[%emt 0:10:56]} Nxd5 {[%emt 0:00:59]} 10. Nxc6 {[%emt 0:00:12]} bxc6 {[%emt 0:00:41]} 11. Nxd5 {[%emt 0:00:04]} Qxd5 {[%emt 0:00:50]} 12. Qxd5 {[%emt 0:00:13]} cxd5 {[%emt 0:00:09]} 13. c3 {[%emt 0:01:23]} e5 {[%emt 0:00:14]} 14. O-O-O {[%emt 0:00:13]} Be6 {[%emt 0:00:08]} 15. Ba6 {[%emt 0:01:55]} Rfd8 {[%emt 0:01:21]} 16. Kb1 {[%emt 0:02:02]} f5 {[%emt 0:12:48]} 17. Rhe1 {[%emt 0:00:30]} Kf7 {[%emt 0:01:04]} 18. Bc5 {[%emt 0:00:51]} h5 {[%emt 0:09:54]} 19. a4 {[%emt 0:00:26]} Bf6 {[%emt 0:05:45]} 20. a5 {[%emt 0:00:29]} h4 {[%emt 0:06:55]} 21. Bb7 {[%emt 0:00:13]} Rab8 {[%emt 0:12:42]} 22. a6 {[%emt 0:00:31]} Rd7 {[%emt 0:00:34]} 23. Bxa7 {[%emt 0:00:16]} Rbxb7 {[%emt 0:00:07]} 24. axb7 {[%emt 0:00:06]} Rxb7 {[%emt 0:00:05]} 25. Bc5 {[%emt 0:00:24]} g5 {[%emt 0:01:08]} 26. g3 {[%emt 0:01:41]} h3 {[%emt 0:01:06]} 27. f4 {[%emt 0:03:14]} e4 {[%emt 0:00:07]} 28. Bd4 {[%emt 0:00:03]} Be7 {[%emt 0:05:42]} 29. Kc2 {[%emt 0:00:20]} Bd7 {[%emt 0:00:48]} 30. Ra1 {[%emt 0:00:06]} Bb5 {[%emt 0:00:16]} 31. Ra7 {[%emt 0:00:25]} Bd3+ {[%emt 0:00:14]} 32. Kc1 {[%emt 0:00:04]} Rxa7 {[%emt 0:03:59]} 33. Bxa7 {[%emt 0:00:07]} Kg6 {[%emt 0:01:20]} 34. Be3 {[%emt 0:00:24]} Kh5 {[%emt 0:00:16]} 35. fxg5 {[%emt 0:00:12]} Bxg5 {[%emt 0:00:56]} 36. Bxg5 {[%emt 0:00:11]} Kxg5 {[%emt 0:00:02]} 37. Kd2 {[%emt 0:00:08]} f4 {[%emt 0:01:13]} 38. gxf4+ {[%emt 0:00:14]} Kxf4 {[%emt 0:00:02]} 39. Re3 {[%emt 0:00:08]} Bf1 {[%emt 0:00:35]} 40. Rg3 {[%emt 0:00:10]} Bg2 {[%emt 0:00:36]} 41. b3 {[%emt 0:30:33]} Bf1 {[%emt 0:30:25]} 42. b4 {[%emt 0:00:05]} Bg2 {[%emt 0:01:48]} 43. b5 {[%emt 0:00:05]} Ke5 {[%emt 0:01:33]} 44. Ke3 {[%emt 0:00:05]} Kd6 {[%emt 0:00:36]} 45. Kd4 {[%emt 0:00:07]} Kc7 {[%emt 0:00:15] Kxe4} 1-0

[Event "Skalica Open 2019"]
[Site "Skalica"]
[Date "2019.08.29"]
[Round "7.13"]
[White "Jablonicky, Martin"]
[Black "Jun, Rudolf Jr."]
[Result "1-0"]
[ECO "B31"]
[WhiteElo "2343"]
[BlackElo "2114"]
[Annotator "NA"]
[PlyCount "81"]
[EventDate "2019.08.25"]
[EventType "swiss"]
[EventCountry "SVK"]
[SourceTitle "playchess.com"]
[Source "ChessBase"]
[SourceQuality "1"]
[TimeControl "40/5400+30:1800+30"]

1. e4 {[%emt 0:01:42]} c5 {[%emt 0:00:00]} 2. Nf3 {[%emt 0:00:04]} Nc6 {[%emt 0:00:00]} 3. Bb5 {[%emt 0:00:05]} g6 {[%emt 0:00:00]} 4. Bxc6 {[%emt 0:00:12]} dxc6 {[%emt 0:00:01]} 5. d3 {[%emt 0:00:05]} Bg7 {[%emt 0:00:05]} 6. h3 {[%emt 0:00:04]} e5 {[%emt 0:00:15]} 7. O-O {[%emt 0:00:06]} Ne7 {[%emt 0:00:20]} 8. Be3 {[%emt 0:00:26]} b6 {[%emt 0:00:43]} 9. a3 {[%emt 0:00:05]} O-O {[%emt 0:00:27]} 10. b4 {[%emt 0:00:03]} cxb4 {[%emt 0:00:09]} 11. axb4 {[%emt 0:00:03]} Qc7 {[%emt 0:01:06]} 12. Nbd2 {[%emt 0:00:22]} h6 {[%emt 0:00:22]} 13. Nc4 {[%emt 0:00:07]} Be6 {[%emt 0:00:08]} 14. Qc1 {[%emt 0:00:41]} Kh7 {[%emt 0:01:31]} 15. Qb2 Bxc4 {[%emt 0:00:08]} 16. dxc4 {[%emt 0:00:10]} Rfd8 {[%emt 0:00:40]} 17. c5 {[%emt 0:00:22]} b5 {[%emt 0:00:08]} 18. Qb3 {[%emt 0:00:04]} f5 {[%emt 0:01:19]} 19. Qe6 {[%emt 0:04:35]} Qd7 {[%emt 0:05:19]} 20. Qxd7 Rxd7 {[%emt 0:00:05]} 21. Rfd1 {[%emt 0:05:13]} Rad8 {[%emt 0:00:24]} 22. Rd6 {[%emt 0:00:08]} Rxd6 {[%emt 0:05:40]} 23. cxd6 {[%emt 0:00:10]} Nc8 {[%emt 0:00:49]} 24. Bxa7 {[%emt 0:01:03]} Nxd6 25. Bb6 {[%emt 0:01:04]} Re8 {[%emt 0:06:19]} 26. Nd2 {[%emt 0:00:30]} Nxe4 {[%emt 0:03:56]} 27. Nxe4 {[%emt 0:00:14]} fxe4 {[%emt 0:00:05]} 28. Kf1 {[%emt 0:01:43]} e3 {[%emt 0:02:29]} 29. Bxe3 {[%emt 0:00:11]} g5 {[%emt 0:00:16]} 30. Ra6 {[%emt 0:00:22]} Re6 {[%emt 0:00:19]} 31. c4 {[%emt 0:00:23]} bxc4 {[%emt 0:06:05]} 32. b5 {[%emt 0:00:04]} Re8 {[%emt 0:00:53]} 33. Rxc6 {[%emt 0:00:15]} Rb8 {[%emt 0:00:28]} 34. b6 {[%emt 0:00:06]} Bf8 {[%emt 0:01:23]} 35. Rxc4 {[%emt 0:00:40]} Bd6 {[%emt 0:00:29]} 36. Rc6 {[%emt 0:00:05]} Rd8 {[%emt 0:00:16]} 37. b7 {[%emt 0:00:34]} Bb8 {[%emt 0:00:43]} 38. Rc8 {[%emt 0:00:05]} Rg8 {[%emt 0:00:08]} 39. Bb6 {[%emt 0:00:16]} Kg7 {[%emt 0:02:21]} 40. Bc7 {[%emt 0:00:05]} Bxc7 {[%emt 0:00:04]} 41. Rxc7+ {[%emt 0:30:04]} 1-0

[Event "Skalica Open 2019"]
[Site "Skalica"]
[Date "2019.08.29"]
[Round "7.14"]
[White "Hrbek, Stepan"]
[Black "Kantorik, Marian"]
[Result "1/2-1/2"]
[ECO "B05"]
[WhiteElo "2066"]
[BlackElo "2164"]
[Annotator "NA"]
[PlyCount "161"]
[EventDate "2019.08.25"]
[EventType "swiss"]
[EventCountry "SVK"]
[SourceTitle "playchess.com"]
[Source "ChessBase"]
[SourceQuality "1"]
[TimeControl "40/5400+30:1800+30"]

1. e4 {[%emt 0:00:00]} Nf6 {[%emt 0:00:49]} 2. e5 {[%emt 0:00:00]} Nd5 {[%emt 0:00:12]} 3. d4 {[%emt 0:00:00]} d6 {[%emt 0:00:06]} 4. Nf3 {[%emt 0:00:39]} Bg4 {[%emt 0:00:18]} 5. Be2 {[%emt 0:00:55]} e6 {[%emt 0:00:05]} 6. O-O {[%emt 0:04:06]} Be7 {[%emt 0:00:22]} 7. h3 {[%emt 0:11:22]} Bh5 {[%emt 0:00:28]} 8. b3 {[%emt 0:11:32]} O-O {[%emt 0:02:01]} 9. c4 {[%emt 0:00:19]} Nb6 {[%emt 0:00:37]} 10. exd6 {[%emt 0:01:37]} cxd6 {[%emt 0:00:32]} 11. Bb2 {[%emt 0:00:07]} Nc6 {[%emt 0:03:23]} 12. a3 {[%emt 0:05:39]} a5 {[%emt 0:04:06]} 13. Nbd2 {[%emt 0:24:05]} d5 {[%emt 0:13:41]} 14. c5 {[%emt 0:10:45]} Nd7 {[%emt 0:03:04]} 15. b4 {[%emt 0:02:06]} Bxf3 {[%emt 0:02:31]} 16. Nxf3 {[%emt 0:03:24]} axb4 {[%emt 0:06:48]} 17. axb4 {[%emt 0:00:05]} Rxa1 {[%emt 0:00:08]} 18. Bxa1 {[%emt 0:00:02]} Nxb4 {[%emt 0:02:30]} 19. Qb3 {[%emt 0:00:51]} Nc6 {[%emt 0:00:41]} 20. Qxb7 Qc8 {[%emt 0:03:16]} 21. Rb1 {[%emt 0:04:05]} Bf6 {[%emt 0:04:20]} 22. Ba6 {[%emt 0:03:03]} Qxb7 {[%emt 0:02:30]} 23. Rxb7 {[%emt 0:08:07]} Nxc5 {[%emt 0:06:42]} 24. dxc5 {[%emt 0:00:41]} Bxa1 {[%emt 0:00:08]} 25. Rb6 {[%emt 0:03:29]} Nd4 {[%emt 0:04:40]} 26. c6 {[%emt 0:00:52]} Nxf3+ {[%emt 0:03:17]} 27. gxf3 {[%emt 0:00:04]} Be5 {[%emt 0:00:13]} 28. Rb7 {[%emt 0:00:04]} g5 {[%emt 0:00:48]} 29. Ra7 {[%emt 0:01:18]} Rb8 {[%emt 0:03:51]} 30. c7 {[%emt 0:00:25]} Bxc7 {[%emt 0:00:06]} 31. Rxc7 {[%emt 0:00:02]} Kg7 {[%emt 0:00:18]} 32. Bd3 {[%emt 0:00:36]} Rb3 {[%emt 0:00:47]} 33. Be2 {[%emt 0:00:22]} h5 {[%emt 0:01:57]} 34. Kg2 {[%emt 0:01:08]} Kg6 {[%emt 0:01:14]} 35. Re7 {[%emt 0:01:10]} Rb4 {[%emt 0:01:01]} 36. Bd3+ {[%emt 0:00:37]} Kf6 {[%emt 0:00:12]} 37. Rc7 {[%emt 0:01:15]} h4 {[%emt 0:05:24]} 38. Ba6 {[%emt 0:01:03]} Rf4 {[%emt 0:01:38]} 39. Bb5 {[%emt 0:01:27]} Kg7 {[%emt 0:00:59]} 40. Be8 {[%emt 0:01:24]} Kf8 {[%emt 0:00:22]} 41. Bb5 {[%emt 0:30:16]} Kg7 {[%emt 0:30:04]} 42. Ra7 {[%emt 0:00:55]} Kf6 {[%emt 0:06:21]} 43. Be8 {[%emt 0:00:21]} Kg6 {[%emt 0:00:22]} 44. Rc7 {[%emt 0:00:00]} Kg7 {[%emt 0:00:00]} 45. Rb7 {[%emt 0:00:00]} Kf8 {[%emt 0:00:00]} 46. Bc6 {[%emt 0:00:00]} Kg7 {[%emt 0:00:00]} 47. Ra7 {[%emt 0:00:00]} Kf6 {[%emt 0:00:00]} 48. Be8 {[%emt 0:00:00]} Kg6 {[%emt 0:00:00]} 49. Ra3 {[%emt 0:00:00]} Kf6 {[%emt 0:00:00]} 50. Kf1 {[%emt 0:00:00]} Ke7 {[%emt 0:00:00]} 51. Ba4 {[%emt 0:00:00]} Rb4 {[%emt 0:00:00]} 52. Bb3 {[%emt 0:00:00]} Kf6 {[%emt 0:00:00]} 53. Ba4 {[%emt 0:00:00]} Rb1+ {[%emt 0:00:00]} 54. Kg2 {[%emt 0:00:00]} Rb4 {[%emt 0:00:00]} 55. Be8 {[%emt 0:00:00]} Rf4 {[%emt 0:00:00]} 56. Kf1 {[%emt 0:00:00]} Ke7 {[%emt 0:00:00]} 57. Bb5 {[%emt 0:00:00]} Rb4 {[%emt 0:00:00]} 58. Ra7+ {[%emt 0:00:00]} Kf8 {[%emt 0:00:00]} 59. Ra8+ {[%emt 0:00:00]} Kg7 {[%emt 0:00:00]} 60. Be8 {[%emt 0:00:00]} Rb7 {[%emt 0:00:00]} 61. Ra4 {[%emt 0:01:27]} Rb8 {[%emt 0:00:00]} 62. Bd7 {[%emt 0:01:02]} Rb1+ {[%emt 0:00:00]} 63. Kg2 {[%emt 0:00:04]} Rb7 {[%emt 0:00:00]} 64. Bc8 {[%emt 0:05:54]} Rc7 {[%emt 0:00:00]} 65. Ba6 {[%emt 0:00:34]} Ra7 {[%emt 0:00:00]} 66. Bb5 {[%emt 0:01:52]} Rxa4 {[%emt 0:00:31]} 67. Bxa4 {[%emt 0:00:02]} Kf6 {[%emt 0:00:07]} 68. Kf1 {[%emt 0:00:05]} Ke5 {[%emt 0:00:25]} 69. Ke2 {[%emt 0:00:37]} Kf4 {[%emt 0:01:11]} 70. Bb3 {[%emt 0:02:15]} d4 {[%emt 0:01:02]} 71. Bc4 {[%emt 0:00:10]} Ke5 {[%emt 0:03:26]} 72. Bb3 {[%emt 0:00:43]} Kf4 {[%emt 0:00:35]} 73. Bc4 {[%emt 0:00:03]} Ke5 {[%emt 0:00:07]} 74. Bb3 {[%emt 0:00:02]} Kf4 {[%emt 0:01:48]} 75. Bd1 {[%emt 0:00:17]} e5 {[%emt 0:02:01]} 76. Kd3 {[%emt 0:00:04]} Kf5 {[%emt 0:00:33]} 77. Kc4 {[%emt 0:01:40]} Kf4 {[%emt 0:00:06]} 78. Kd3 {[%emt 0:00:32]} Kf5 {[%emt 0:00:06]} 79. Kc4 {[%emt 0:01:07]} Kf4 {[%emt 0:00:07]} 80. Kd3 {[%emt 0:00:37]} Kf5 {[%emt 0:01:30]} 81. Kc4 {[%emt 0:00:06]} 1/2-1/2

[Event "Skalica Open 2019"]
[Site "Skalica"]
[Date "2019.08.29"]
[Round "7.16"]
[White "Londin, Simon"]
[Black "Kapusta, Petr"]
[Result "1/2-1/2"]
[ECO "B23"]
[WhiteElo "2038"]
[BlackElo "2157"]
[Annotator "NA"]
[PlyCount "24"]
[EventDate "2019.08.25"]
[EventType "swiss"]
[EventCountry "SVK"]
[SourceTitle "playchess.com"]
[Source "ChessBase"]
[SourceQuality "1"]
[TimeControl "40/5400+30:1800+30"]

1. e4 {[%emt 0:00:00]} c5 {[%emt 0:00:00]} 2. Nc3 {[%emt 0:00:00]} Nc6 {[%emt 0:00:14]} 3. f4 {[%emt 0:00:00]} e6 {[%emt 0:01:38]} 4. Nf3 {[%emt 0:00:00]} d5 {[%emt 0:00:30]} 5. Bb5 {[%emt 0:00:00]} Nge7 {[%emt 0:00:55]} 6. exd5 {[%emt 0:03:02]} exd5 {[%emt 0:00:22]} 7. Qe2 {[%emt 0:00:07]} a6 {[%emt 0:14:03]} 8. Bxc6+ {[%emt 0:01:47]} bxc6 {[%emt 0:00:06]} 9. O-O {[%emt 0:04:20]} Qd6 {[%emt 0:07:10]} 10. Ne5 {[%emt 0:16:33]} g6 {[%emt 0:03:02]} 11. b3 {[%emt 0:19:43]} Be6 {[%emt 0:10:40]} 12. Na4 {[%emt 0:16:21]} Nf5 {[%emt 0:02:15]} 1/2-1/2